bitfinex-derivatives/quotes_ETHF0:USTF0_20250102
["timestamp","ask_amount","ask_price","bid_price","bid_amount"]
[1735837939640,0.8537,3476.5,3476.4,2.55515405]
[1735837941140,0.8537,3476.5,3476.4,0.2879]
[1735837943339,1.14159,3476.5,3476.4,0.2879]
[1735837944039,1.14159,3476.5,3476.1,2.26725405]
[1735837944040,0.8537,3476.5,3476.1,2.26725405]
[1735837944250,3.49571,3476.3,3476.2,0.28791]
[1735837944450,0.28793,3476.0,3475.9,0.28793]
[1735837944635,0.28792,3476.2,3476.1,0.28792]
[1735837944943,0.28792,3476.2,3476.1,0.28791]
[1735837945147,0.28792,3476.2,3475.8,2.26725405]
[1735837945443,1.174,3476.4,3475.8,2.26725405]
[1735837945444,3.2078,3475.9,3475.8,2.26725405]
[1735837945644,3.2078,3475.9,3475.8,2.55520405]
[1735837946244,3.2078,3476.3,3475.8,2.55520405]
[1735837946549,1.174,3476.4,3476.3,0.2879]
[1735837946741,0.8537,3476.5,3476.4,0.2879]
[1735837946948,0.8537,3476.5,3476.4,2.55515405]
[1735837950149,0.8537,3476.5,3475.8,2.26725405]
[1735837950344,0.28791,3476.2,3476.1,0.28792]
[1735837950647,3.2078,3476.3,3475.8,2.26725405]
[1735837950846,3.2078,3476.3,3475.8,0.28794]
[1735837950847,0.28793,3476.0,3475.8,0.28794]
[1735837951146,0.4643,3476.1,3475.5,2.26725405]
[1735837951343,0.4643,3476.1,3476.0,0.28793]
[1735837951544,0.28793,3476.0,3475.9,0.28793]
[1735837951745,0.75223,3476.1,3475.9,0.28793]
[1735837951946,0.03935465,3476.0,3475.9,0.28793]
[1735837952147,0.32728465,3476.0,3475.9,0.28793]
[1735837952845,0.03935465,3476.0,3475.9,0.28793]
[1735837960142,0.03935465,3476.0,3475.8,2.26725405]
[1735837960143,0.0787093,3476.0,3475.8,2.26725405]
[1735837960453,0.0787093,3476.0,3475.9,0.28794]
[1735837962354,1.3029,3476.5,3475.8,2.26725405]
[1735837962554,1.3029,3476.5,3476.4,2.55515405]
[1735837967853,1.174,3477.2,3476.4,6.91453405]
[1735837967854,3.2078,3477.2,3476.4,6.91453405]
[1735837968055,3.2078,3477.2,3477.1,2.55509405]
[1735837968951,3.49563,3477.2,3477.1,2.55509405]
[1735837969460,3.2078,3477.2,3477.1,2.55509405]
[1735837969654,3.49563,3477.2,3477.1,2.55509405]
[1735837969846,3.49563,3477.2,3477.1,0.28784]
[1735837970449,0.28785,3477.0,3476.9,0.28784]
[1735837971161,0.28785,3476.9,3476.8,0.28786]
[1735837971355,1.17485,3476.9,3476.8,0.28786]
[1735837972057,0.887,3476.9,3476.8,0.28786]
[1735837972360,1.17485,3476.9,3476.8,0.28786]
[1735837973658,0.887,3476.9,3476.8,2.55511405]
[1735837974362,0.4231,3476.9,3476.8,2.55511405]
[1735837977161,7.06073487,3477.2,3476.8,2.26725405]
[1735837977359,3.85293487,3477.2,3477.1,2.55509405]
[1735837977565,0.4664,3477.2,3477.1,2.55509405]
[1735837977759,4.47673751,3477.3,3477.2,0.28783]
[1735837978762,3.38108989,3477.3,3477.2,0.28783]
[1735837980274,3.83998989,3477.3,3477.2,0.28783]
[1735837981263,3.38108989,3477.3,3477.2,0.28783]
[1735837981475,3.81300829,3477.3,3477.2,0.28783]
[1735837982272,3.81300829,3477.3,3477.2,1.4576]
[1735837982777,3.38108989,3477.3,3477.2,1.4576]
[1735837983473,3.38108989,3477.3,3477.2,0.73774154]
[1735837984169,3.38108989,3477.4,3477.3,0.28782]
[1735837984568,3.38108989,3477.4,3477.3,0.73773154]
[1735837985269,3.37595875,3477.5,3477.3,2.71716559]
[1735837985477,4.47673751,3477.7,3477.6,0.2878]
[1735837985675,4.47673751,3477.7,3477.6,2.55505405]
[1735837985876,4.47673751,3477.7,3477.6,3.00496559]
[1735837986077,0.59924443,3477.7,3477.6,3.00496559]
[1735837986383,0.02294443,3477.7,3477.6,8.00496559]
[1735837986874,5.60009661,3477.9,3477.6,11.50716559]
[1735837987177,0.4647,3478.5,3478.4,0.28773]
[1735837987474,3.2078,3478.9,3478.8,0.2877]
[1735837987669,3.637,3478.9,3478.8,2.55495405]
[1735837987870,0.4292,3478.9,3478.8,2.55495405]
[1735837989767,3.2078,3479.8,3478.8,8.0300081]
[1735837989979,1.3443,3479.7,3479.6,0.28763]
[1735837991280,0.8837,3479.7,3479.6,2.55488405]
[1735837992276,0.8837,3479.7,3479.6,2.26725405]
[1735837992783,1.3194,3479.7,3479.6,2.55488405]
[1735837993282,1.3194,3479.7,3479.6,2.26725405]
[1735837993676,0.28764,3479.6,3479.3,2.26725405]
[1735837993980,3.2078,3479.4,3479.3,2.26725405]
[1735837994479,3.2078,3479.4,3479.3,2.55491405]
[1735837996371,3.23867469,3479.4,3479.3,2.55491405]
[1735838004185,3.23867469,3479.4,3479.3,0.28766]
[1735838004378,3.23867469,3479.4,3478.7,2.98652405]
[1735838004577,0.28766,3479.3,3479.0,0.28767]
[1735838004879,3.23867469,3479.4,3479.0,0.28768]
[1735838004880,0.28767,3479.2,3479.0,0.28768]
[1735838005286,0.03087469,3479.1,3479.0,0.28768]
[1735838008678,0.03087469,3479.1,3479.0,2.55493405]
[1735838010987,0.4292,3479.7,3479.6,0.28763]
[1735838011187,3.6323,3479.8,3479.6,2.26725405]
[1735838011188,3.2078,3479.8,3479.6,2.26725405]
[1735838011389,3.2078,3479.8,3479.7,0.28762]
[1735838011589,0.4528,3480.1,3479.7,0.28762]
[1735838011787,0.4528,3480.1,3480.0,0.2876]
[1735838011986,0.4528,3480.1,3480.0,2.55485405]
[1735838013385,0.4528,3480.1,3480.0,0.2876]
[1735838013597,0.74039,3480.1,3480.0,0.2876]
[1735838013808,0.4528,3480.1,3480.0,0.2876]
[1735838014191,0.4528,3480.1,3480.0,2.55485405]
[1735838015794,3.2078,3480.2,3480.1,0.28759]
[1735838016094,3.2078,3480.2,3480.0,2.26725405]
[1735838016095,3.2078,3480.6,3480.0,2.26725405]
[1735838016296,3.2078,3480.6,3480.5,0.28756]
[1735838017599,3.49535,3480.6,3480.4,0.28756]
[1735838017898,3.2078,3480.6,3480.5,0.28756]
[1735838018994,3.49535,3480.6,3480.5,0.28756]
[1735838019189,3.2078,3480.6,3479.6,2.98633405]
[1735838019393,3.2078,3480.2,3480.1,0.28758]
[1735838019590,3.49538,3480.2,3480.1,0.28758]
[1735838019792,4.1004,3480.2,3480.1,0.28758]
[1735838019993,4.38798,3480.2,3480.1,0.28758]
[1735838020193,4.1004,3480.2,3479.4,3.92692]
[1735838020393,4.38799,3480.2,3480.1,0.28759]
[1735838021194,4.1004,3480.2,3480.1,0.28759]
[1735838022100,4.1004,3480.2,3480.0,0.28759]
[1735838022101,0.2876,3480.1,3480.0,0.28759]
[1735838022796,0.2876,3480.1,3479.6,2.26725405]
[1735838022797,0.28759,3480.1,3479.6,2.26725405]
[1735838023104,4.1004,3480.2,3479.2,0.71915]
[1735838023105,3.2078,3479.8,3479.3,2.26725405]
[1735838023400,3.2078,3479.8,3479.7,0.28762]
[1735838024401,3.2078,3479.8,3479.6,0.28762]
[1735838024402,0.28763,3479.7,3479.6,0.28762]
[1735838024702,3.2078,3479.8,3479.0,5.47505405]
[1735838025004,0.456,3479.6,3479.5,0.28764]
[1735838025802,3.2078,3479.8,3479.7,0.28762]
[1735838029194,0.4482,3480.1,3480.0,0.2876]
[1735838029398,3.662,3480.2,3480.0,2.26725405]
[1735838029399,0.4542,3480.2,3480.0,2.26725405]
[1735838029602,4.48277862,3480.6,3480.0,2.26725405]
[1735838029603,4.90517862,3480.6,3480.0,2.26725405]
[1735838029798,4.90517862,3480.6,3479.8,3.2078]
[1735838029799,4.90517862,3480.6,3480.5,0.28756]
[1735838030802,0.4224,3480.6,3480.5,0.28756]
[1735838032013,3.88522878,3480.6,3480.5,0.28756]
[1735838032899,9.48870206,3480.6,3480.5,0.28756]
[1735838034407,3.88522878,3480.6,3480.5,0.28756]
[1735838035309,4.32372878,3480.6,3480.5,0.28756]
[1735838035505,0.8609,3480.6,3480.5,0.28756]
[1735838036508,1.14845,3480.6,3480.5,0.28756]
[1735838036913,4.61127878,3480.6,3480.5,0.28756]
[1735838037102,4.32372878,3480.6,3480.5,0.28756]
[1735838037809,4.61127878,3480.6,3480.5,0.28756]
[1735838038003,4.32372878,3480.6,3480.1,2.26725405]
[1735838038203,3.2078,3480.2,3479.6,0.71909]
[1735838038510,3.2078,3480.2,3480.0,0.28759]
[1735838038511,0.7158,3480.1,3480.0,0.28759]
[1735838038706,0.7158,3480.1,3479.9,0.2876]
[1735838038707,0.28761,3480.0,3479.9,0.2876]
[1735838038913,0.72891,3480.0,3479.9,0.2876]
[1735838039407,0.28764,3479.6,3479.5,0.28763]
[1735838039713,3.2078,3479.7,3479.6,0.28763]
[1735838039907,3.49542,3479.7,3479.6,0.28763]
[1735838040110,0.28764,3479.6,3479.5,0.28763]
[1735838040412,3.2078,3479.7,3479.3,2.26725405]
[1735838040413,3.49543,3479.7,3479.6,0.28763]
[1735838041410,0.28766,3479.3,3479.1,0.28767]
[1735838041606,0.4442,3479.2,3479.1,0.28767]
[1735838041814,1.15886,3479.2,3479.1,0.28767]
[1735838042106,0.8712,3479.2,3479.1,0.28767]
[1735838043412,0.427,3479.2,3479.1,0.28767]
[1735838043613,0.28765,3479.5,3479.0,2.26725405]
[1735838043810,0.28765,3479.5,3479.4,0.28765]
[1735838044006,1.16134,3479.6,3479.5,0.28764]
[1735838045912,0.28765,3479.5,3479.4,0.28764]
[1735838046416,0.8737,3479.6,3479.3,2.26725405]
[1735838046619,0.8737,3479.6,3479.5,0.28764]
[1735838048220,4.33728694,3479.6,3479.5,0.28764]
[1735838048418,3.46358694,3479.6,3479.5,0.28764]
[1735838050018,9.09396115,3479.6,3479.5,0.28764]
[1735838050614,5.63037421,3479.6,3479.5,0.28764]
[1735838050815,3.2078,3479.7,3479.2,2.26725405]
[1735838050816,8.83817421,3479.7,3479.2,2.26725405]
[1735838051013,8.83817421,3479.7,3479.1,0.9044]
[1735838051213,0.72404,3479.6,3479.0,1.00688]
[1735838051522,0.28764,3479.5,3478.9,5.47505405]
[1735838051721,6.07887421,3479.4,3479.3,0.28765]
[1735838052727,9.543651,3479.4,3479.3,0.28765]
[1735838054021,0.4485,3479.4,3479.3,0.28765]
[1735838058528,2.70175185,3479.4,3479.3,0.28765]
[1735838059628,0.4485,3479.4,3479.3,0.28765]
[1735838063326,0.4485,3479.4,3478.8,4.49384868]
[1735838063529,3.2078,3478.9,3478.8,4.78154868]
[1735838064533,0.4402,3479.0,3478.8,9.96890273]
[1735838064742,0.45064244,3479.4,3478.8,9.96890273]
[1735838064937,0.00214244,3479.4,3479.3,2.55491405]
[1735838065737,5.05417421,3479.5,3479.4,0.28765]
[1735838066044,0.4521,3480.3,3480.2,0.28758]
[1735838066341,0.4521,3480.3,3480.2,2.55483405]
[1735838066537,3.83309047,3480.3,3480.2,2.55483405]
[1735838066739,3.83309047,3480.3,3480.2,0.28758]
[1735838067639,0.4521,3480.3,3480.2,0.28758]
[1735838068243,0.4521,3480.3,3480.2,2.55483405]
[1735838069143,2.70630054,3480.3,3480.2,2.55483405]
[1735838069838,2.70630054,3480.3,3480.2,3.00436001]
[1735838070042,2.70630054,3480.3,3480.2,0.28758]
[1735838071643,0.4521,3480.3,3480.2,0.28758]
[1735838073848,3.83307378,3480.3,3480.2,0.28758]
[1735838074548,3.83307378,3480.3,3480.1,0.28758]
[1735838074849,3.83307378,3480.3,3480.2,0.28758]
[1735838075546,3.83307378,3480.3,3479.9,2.26725405]
[1735838075744,3.83307378,3480.3,3480.2,0.28758]
[1735838076346,0.4521,3480.3,3480.2,0.28758]
[1735838081248,0.4521,3480.3,3480.2,2.55483405]
[1735838081750,0.4521,3480.3,3480.2,0.28758]
[1735838083450,0.4521,3480.3,3479.9,4.49384868]
[1735838083650,0.28758,3480.2,3480.0,0.2876]
[1735838083849,3.6442,3480.1,3480.0,0.2876]
[1735838084955,0.2876,3480.0,3479.9,4.49384868]
[1735838085156,0.2876,3480.0,3479.4,3.79374868]
[1735838085157,1.625,3480.0,3479.4,3.79374868]
[1735838085357,0.28764,3479.5,3479.4,3.79374868]
[1735838085655,3.2078,3479.6,3479.4,3.79374868]
[1735838085853,0.454,3479.5,3479.4,4.08139868]
[1735838086556,2.70774267,3479.5,3479.4,0.28765]
[1735838087756,0.454,3479.5,3479.4,0.28765]
[1735838088357,0.8916,3479.5,3479.4,0.28765]
[1735838089862,1.17924,3479.5,3479.4,0.28765]
[1735838090760,1.17924,3479.5,3479.3,0.28765]
[1735838090959,0.72905,3479.4,3479.0,0.4617]
[1735838091156,0.72905,3479.4,3479.3,0.28766]
[1735838091359,0.4414,3479.4,3479.3,0.28766]
[1735838091756,0.28768,3479.1,3479.0,0.28768]
[1735838091951,0.4414,3479.4,3478.9,6.74077302]
[1735838092155,0.4414,3479.4,3479.3,0.28766]
[1735838092960,0.72905,3479.4,3479.2,0.28766]
[1735838093164,0.28766,3479.3,3479.1,0.28766]
[1735838093363,0.4414,3479.4,3478.9,6.74077302]
[1735838093661,0.72905,3479.4,3479.2,0.28766]
[1735838093962,0.4414,3479.4,3478.9,6.74077302]
[1735838094564,0.28766,3479.3,3479.1,0.28767]
[1735838094766,0.28766,3479.2,3479.0,0.28768]
[1735838095062,0.28766,3479.2,3479.1,0.44968928]
[1735838095259,2.25374267,3479.8,3479.1,0.44968928]
[1735838095465,3.38097378,3479.9,3479.7,5.47505405]
[1735838095662,1.3097,3480.5,3480.2,0.28758]
[1735838095855,1.3097,3480.5,3480.2,0.44968928]
[1735838096059,4.5175,3480.5,3480.2,0.44968928]
[1735838096664,4.5175,3480.5,3479.4,4.0813]
[1735838096665,2.26725405,3480.4,3479.4,6.34855405]
[1735838096866,2.26725405,3480.4,3479.6,8.98769737]
[1735838096867,0.2876,3480.0,3479.6,8.98769737]
[1735838097065,0.441,3479.9,3479.8,6.74077302]
[1735838097269,4.0843,3479.9,3479.8,6.74077302]
[1735838097669,4.37191,3479.9,3479.8,6.74077302]
[1735838097967,4.80711,3479.9,3479.8,6.74077302]
[1735838098164,4.80711,3479.9,3478.7,0.4328]
[1735838098165,4.5195,3479.9,3479.3,6.74077302]
[1735838098367,3.2078,3479.4,3479.3,7.02843302]
[1735838099468,3.2078,3479.4,3479.3,0.73586621]
[1735838099772,4.5195,3479.9,3479.3,0.44820621]
[1735838099964,4.5195,3479.9,3479.6,0.28763]
[1735838100162,4.5195,3479.9,3479.0,0.71921]
[1735838100371,4.5195,3479.9,3479.2,0.44820987]
[1735838100560,4.80711,3479.9,3479.6,0.28763]
[1735838101063,4.80711,3479.9,3478.9,7.03207302]
[1735838101064,4.5195,3479.9,3478.9,6.74077302]
[1735838101268,5.47505405,3479.5,3478.9,6.74077302]
[1735838101471,3.2078,3479.1,3479.0,0.28768]
[1735838101957,4.1193,3479.1,3479.0,0.28768]
[1735838102669,3.2078,3479.1,3479.0,0.28768]
[1735838102868,0.4413,3479.4,3479.3,0.28766]
[1735838106173,0.4413,3479.4,3479.1,2.26725405]
[1735838106174,0.4413,3479.4,3479.1,0.28767]
[1735838106372,0.4413,3479.4,3478.3,0.71934]
[1735838106373,0.28766,3479.3,3479.0,0.28768]
[1735838107379,0.28766,3479.3,3479.1,0.28767]
[1735838107776,0.72895,3479.4,3479.2,0.28766]
[1735838108078,0.4413,3479.4,3479.2,0.28766]
[1735838108676,0.72895,3479.4,3479.2,0.28766]
[1735838109078,0.4413,3479.4,3478.8,9.00802707]
[1735838109273,0.28766,3479.3,3479.1,0.28767]
[1735838109979,0.28766,3479.3,3478.6,7.03277302]
[1735838110184,3.2078,3479.2,3478.6,7.03277302]
[1735838110484,0.71278,3479.1,3478.9,0.28769]
[1735838110782,0.4346,3479.0,3478.9,0.28769]
[1735838112078,0.4251,3479.1,3479.0,0.28768]
[1735838112477,0.4251,3479.1,3479.0,0.7361648]
[1735838113081,3.22186394,3479.8,3478.8,2.26725405]
[1735838113082,3.2078,3479.6,3478.8,5.47505405]
[1735838113274,3.2078,3479.6,3479.5,0.28764]
[1735838115079,3.2078,3479.6,3479.5,0.73626771]
[1735838116984,0.71889,3480.6,3479.9,0.28761]
[1735838116985,3.2078,3480.0,3479.9,0.28761]
[1735838117881,0.28761,3479.9,3479.4,9.00802707]
[1735838118080,0.28763,3479.7,3479.5,0.28764]
[1735838118284,3.6723,3479.8,3479.5,6.74077302]
[1735838118580,3.95992,3479.8,3479.6,0.28762]
[1735838118777,3.6723,3479.8,3479.5,6.74077302]
[1735838118979,0.28763,3479.7,3479.5,7.02841302]
[1735838119175,0.28763,3479.6,3479.5,0.28764]
[1735838119485,3.6723,3479.8,3479.3,6.74077302]
[1735838119682,3.2078,3479.4,3479.3,7.02843302]
[1735838119883,3.2078,3479.4,3479.3,7.47698868]
[1735838120083,3.2078,3479.4,3479.3,7.18932868]
[1735838120285,3.95505,3479.4,3479.3,7.18932868]
[1735838120486,3.95505,3479.4,3479.3,6.74077302]
[1735838120683,3.6674,3479.4,3479.3,7.02843302]
[1735838121483,3.6674,3479.4,3479.3,0.28766]
[1735838121780,0.28767,3479.1,3479.0,6.74077302]
[1735838122981,0.2877,3478.8,3478.7,0.2877]
[1735838123178,3.4955,3478.8,3478.7,0.2877]
[1735838123378,3.2078,3478.8,3478.6,6.74077302]
[1735838123585,0.75211,3478.7,3478.6,7.02848302]
[1735838123885,0.75211,3478.7,3478.6,0.28771]
[1735838124277,0.4644,3478.7,3478.4,6.74077302]
[1735838124486,0.28772,3478.5,3478.4,6.74077302]
[1735838125285,0.4644,3478.7,3478.6,0.28771]
[1735838125490,0.75211,3478.7,3478.6,0.28771]
[1735838125787,3.2078,3478.8,3478.5,2.26725405]
[1735838125986,3.2078,3478.8,3478.7,0.28771]
[1735838126183,0.4416,3479.0,3478.9,0.28769]
[1735838126989,0.72928,3479.0,3478.9,0.28769]
[1735838127185,0.4416,3479.0,3478.9,0.28769]
[1735838127983,0.4416,3479.0,3478.9,0.73743788]
[1735838129290,0.72928,3479.0,3478.9,0.73743788]
[1735838129988,0.72928,3479.0,3478.9,0.44974788]
[1735838130201,0.28771,3478.7,3478.6,7.02848302]
[1735838130485,3.49551,3478.7,3478.6,6.74077302]
[1735838130685,3.49551,3478.7,3478.6,7.02848302]
[1735838130881,3.49551,3478.7,3478.6,6.74077302]
[1735838131087,3.49551,3478.7,3478.6,7.02848302]
[1735838131292,3.49551,3478.7,3478.6,0.28771]
[1735838131591,3.2078,3478.7,3478.5,0.28772]
[1735838131786,3.2078,3478.7,3478.6,0.28771]
[1735838132890,3.49551,3478.7,3478.6,0.28771]
[1735838133286,0.28772,3478.6,3478.2,7.63027302]
[1735838133498,3.2078,3478.7,3478.2,7.63027302]
[1735838133795,0.28772,3478.6,3478.5,0.28772]
[1735838133995,3.49551,3478.7,3478.6,0.28771]
[1735838134486,3.2078,3478.7,3478.6,0.28771]
[1735838134885,3.2078,3478.7,3478.2,9.89752707]
[1735838135085,3.49551,3478.7,3478.6,0.28771]
[1735838135289,3.2078,3478.7,3478.6,0.28771]
[1735838137189,3.49551,3478.7,3478.6,0.28771]
[1735838137591,3.2078,3478.7,3478.6,0.28771]
[1735838137893,3.49551,3478.7,3478.6,0.28771]
[1735838138084,3.2078,3478.7,3478.6,0.28771]
[1735838138284,3.2078,3478.7,3478.3,6.74077302]
[1735838138486,3.2078,3478.7,3478.4,0.28772]
[1735838138792,0.28772,3478.5,3478.4,0.28772]
[1735838138989,0.28773,3478.4,3478.3,6.74077302]
[1735838139193,1.20593,3478.4,3478.3,6.74077302]
[1735838139489,1.20593,3478.4,3478.1,6.74077302]
[1735838139684,0.4504,3478.3,3478.2,0.28775]
[1735838140092,3.6582,3478.3,3478.2,0.28775]
[1735838140990,0.4504,3478.3,3478.2,0.28775]
[1735838141308,3.6582,3478.3,3478.2,0.28775]
[1735838141593,3.94594,3478.3,3478.2,0.28775]
[1735838143294,3.6582,3478.3,3478.2,0.28775]
[1735838143495,0.4504,3478.3,3478.2,0.28775]
[1735838143792,0.28772,3478.6,3477.9,9.72744707]
[1735838144098,3.2078,3478.7,3477.9,9.72744707]
[1735838144099,3.49551,3478.7,3478.6,0.28771]
[1735838144487,3.2078,3478.7,3478.6,0.28771]
[1735838145488,3.49551,3478.7,3478.6,0.28771]
[1735838145789,3.2078,3478.7,3478.1,6.74077302]
[1735838146096,0.28774,3478.3,3478.2,0.28774]
[1735838146293,0.28774,3478.3,3478.2,0.73753523]
[1735838146294,3.49554,3478.3,3478.2,0.73753523]
[1735838146592,3.49554,3478.3,3478.2,0.44979523]
[1735838147192,0.28775,3478.2,3478.1,8.98769737]
[1735838147392,0.28775,3478.2,3477.9,11.23462171]
[1735838147393,0.8835,3478.2,3478.0,6.77492397]
[1735838147588,0.28775,3478.1,3478.0,6.77492397]
[1735838148089,0.8835,3478.2,3478.0,6.77492397]
[1735838148291,0.8835,3478.2,3478.1,0.28775]
[1735838149287,1.17125,3478.2,3478.1,0.28775]
[1735838150494,0.8835,3478.2,3477.7,7.49439397]
[1735838150795,3.2078,3478.3,3478.2,0.28775]
[1735838150989,1.3503,3478.6,3478.5,0.28772]
[1735838151186,3.49549,3478.9,3478.3,0.9051]
[1735838151392,3.2078,3478.9,3478.8,0.2877]
[1735838151595,3.2078,3478.9,3478.8,3.00480739]
[1735838152093,4.50899991,3479.0,3478.9,0.28769]
[1735838152297,4.50899991,3479.0,3478.9,1.17924334]
[1735838152595,0.4235,3479.7,3478.9,0.89155334]
[1735838152794,0.4235,3479.7,3479.6,0.28763]
[1735838153094,0.4235,3479.7,3479.6,0.73748334]
[1735838153595,0.4235,3479.7,3479.6,0.28763]
[1735838158293,3.2078,3480.0,3479.5,2.26725405]
[1735838158593,3.2078,3480.0,3479.9,0.28761]
[1735838161500,3.37741497,3480.4,3479.9,0.28761]
[1735838161795,3.37741497,3480.4,3480.3,0.28757]
[1735838162397,3.37741497,3480.4,3479.4,4.50912]
[1735838162593,3.2078,3480.1,3480.0,0.2876]
[1735838164206,3.37741497,3480.5,3480.4,0.28756]
[1735838164410,3.37741497,3480.5,3480.4,2.55481405]
[1735838165100,3.37741497,3480.5,3480.1,0.71898]
[1735838165101,3.2078,3480.6,3480.1,2.98623405]
[1735838165407,3.2078,3480.6,3480.5,0.28756]
[1735838167317,0.4214,3480.7,3480.6,0.28755]
[1735838169195,0.4214,3480.7,3480.1,2.98623405]
[1735838169196,0.4214,3480.7,3480.1,0.71898]
[1735838169402,0.4214,3480.7,3480.6,0.28755]
[1735838169702,0.28755,3480.6,3480.5,0.28755]
[1735838169906,0.4214,3480.7,3480.5,0.28755]
[1735838169907,0.70895,3480.7,3480.5,0.28755]
[1735838170102,0.4214,3480.7,3479.9,0.4259]
[1735838170303,0.4214,3480.7,3480.3,0.28757]
[1735838170304,3.2078,3480.4,3480.3,0.28757]
[1735838172306,0.4214,3480.7,3480.6,0.28755]
[1735838172707,0.70894,3480.7,3480.1,2.26725405]
[1735838173009,0.70894,3480.7,3480.6,0.28755]
[1735838173210,0.4214,3480.7,3480.6,0.28755]
[1735838176109,3.2078,3480.8,3480.7,0.28754]
[1735838177918,3.49533,3480.8,3480.7,0.28754]
[1735838178114,3.49533,3480.8,3480.4,2.26725405]
[1735838178115,0.28755,3480.6,3480.5,0.28755]
[1735838178313,3.2078,3480.8,3479.8,2.26725405]
[1735838178616,0.4658,3480.5,3480.1,2.26725405]
[1735838178816,0.8631,3480.4,3480.1,2.26725405]
[1735838179115,3.2078,3480.3,3479.8,2.26725405]
[1735838179315,0.28758,3480.2,3479.8,2.26725405]
[1735838179503,3.2078,3480.3,3480.2,0.28758]
[1735838179504,3.49538,3480.3,3480.2,0.28758]
[1735838179710,3.2078,3480.3,3479.8,2.26725405]
[1735838179915,3.2078,3479.9,3479.5,2.26725405]
[1735838180122,0.73252,3479.8,3479.7,0.28762]
[1735838180317,1.17252,3479.8,3479.7,0.28762]
[1735838180606,0.28764,3479.5,3479.3,3.2078]
[1735838180811,0.28765,3479.4,3479.3,3.49545]
[1735838181211,0.4231,3479.7,3479.3,3.2078]
[1735838181410,0.28764,3479.5,3479.4,0.28765]
[1735838181610,3.2078,3479.5,3479.0,0.28767]
[1735838181818,3.49548,3479.1,3478.9,2.55494405]
[1735838182017,0.4405,3479.0,3478.9,0.28769]
[1735838182212,0.4405,3479.0,3478.5,9.76148802]
[1735838182213,0.8807,3479.0,3478.5,9.04217802]
[1735838182414,0.2877,3478.8,3478.6,0.28771]
[1735838182617,0.28771,3478.6,3478.5,6.77492397]
[1735838182815,2.5576,3479.0,3478.3,3.2078]
[1735838183116,2.5576,3479.0,3478.4,0.44978174]
[1735838183321,2.5576,3479.0,3478.3,3.2078]
[1735838183514,2.84528,3479.0,3478.4,0.28773]
[1735838183714,2.5576,3479.0,3478.3,3.2078]
[1735838183914,0.2877,3478.8,3478.6,0.28771]
[1735838184314,0.28771,3478.7,3478.5,0.28771]
[1735838184522,2.5576,3479.0,3478.6,0.28771]
[1735838184523,0.2877,3478.8,3478.6,0.28771]
[1735838184818,0.28769,3478.9,3478.4,0.28773]
[1735838185010,0.28769,3478.9,3478.7,0.2877]
[1735838185216,2.5576,3479.0,3478.3,3.2078]
[1735838185515,2.84528,3479.0,3478.8,0.28769]
[1735838186612,2.5576,3479.0,3478.9,0.28769]
[1735838186916,2.5576,3479.0,3478.5,2.26725405]
[1735838187117,2.5576,3479.0,3478.9,0.28769]
[1735838188011,0.8807,3479.0,3478.9,0.28769]
[1735838189315,1.16838,3479.0,3478.9,0.28769]
[1735838189515,0.8807,3479.0,3478.9,0.28769]
[1735838191027,0.4405,3479.0,3478.9,0.28769]
[1735838191223,3.2078,3479.3,3479.2,0.28766]
[1735838191613,3.49546,3479.3,3479.2,0.28766]
[1735838191813,3.49546,3479.3,3479.1,0.28767]
[1735838192322,3.49546,3479.3,3479.2,0.28766]
[1735838193016,3.49546,3479.3,3478.8,2.26725405]
[1735838193217,3.2078,3479.3,3479.1,0.28767]
[1735838193426,0.28766,3479.2,3479.1,0.28767]
[1735838193725,3.2078,3479.3,3478.8,2.26725405]
[1735838193925,3.2078,3479.3,3479.2,0.28766]
[1735838194118,3.49546,3479.3,3479.2,0.28766]
[1735838194828,3.2078,3479.3,3478.6,0.8725]
[1735838195021,0.2877,3478.8,3478.2,9.76154802]
[1735838195326,0.4522,3478.7,3478.6,0.28771]
[1735838195521,1.1723,3478.7,3478.6,0.28771]
[1735838196123,0.8846,3478.7,3478.6,0.28771]
[1735838196524,0.8846,3478.7,3478.5,0.28772]
[1735838196723,1.17231,3478.7,3478.6,0.28771]
[1735838196920,0.8846,3478.7,3478.4,0.28772]
[1735838197226,0.28774,3478.3,3478.2,0.28774]
[1735838197735,0.28774,3478.3,3478.2,0.28775]
[1735838197924,3.2078,3478.5,3477.9,9.49247802]
[1735838198120,0.71929,3478.6,3477.8,0.28777]
[1735838198121,3.2078,3478.1,3477.8,0.28777]
[1735838198327,0.28779,3477.7,3477.6,0.2878]
[1735838198521,0.28779,3477.7,3477.5,7.06272397]
[1735838198522,0.2878,3477.6,3477.5,7.06272397]
[1735838198727,3.2078,3477.7,3477.6,0.2878]
[1735838199621,1.3214,3478.0,3477.9,0.28777]
[1735838200227,1.3214,3478.0,3477.6,2.26725405]
[1735838200527,3.49559,3477.7,3477.6,2.26725405]
[1735838200728,3.2078,3477.7,3477.6,2.55505405]
[1735838201323,1.60917,3478.0,3477.6,2.26725405]
[1735838201324,1.3214,3478.0,3477.6,2.26725405]
[1735838201531,1.3214,3478.0,3477.9,0.28777]
[1735838202731,1.3214,3478.0,3477.6,2.26725405]
[1735838202935,0.28777,3477.9,3477.6,2.26725405]
[1735838203127,1.3214,3478.0,3477.6,2.26725405]
[1735838203128,1.60916,3478.0,3477.9,0.28777]
[1735838203325,1.3214,3478.0,3477.9,0.28777]
[1735838205627,1.60916,3478.0,3477.9,0.28777]
[1735838206030,1.3214,3478.0,3477.6,2.26725405]
[1735838206235,1.60917,3478.0,3477.9,0.28777]
[1735838208325,1.60916,3478.0,3477.9,0.28777]
[1735838210632,3.2078,3478.1,3477.6,2.26725405]
[1735838210934,3.2078,3478.1,3478.0,0.28776]
[1735838211537,3.49555,3478.1,3478.0,0.28776]
[1735838211735,3.2078,3478.1,3478.0,0.28776]
[1735838212137,0.28778,3477.8,3477.7,0.28778]